bitfinex/quotes_ETHUSD_20240730
["timestamp","ask_amount","ask_price","bid_price","bid_amount"]
[1722321299623,3.688617,3333.1,3332.5,35.0]
[1722321299824,6.088797,3333.1,3332.5,35.0]
[1722321301637,3.688617,3333.1,3332.5,35.0]
[1722321301950,2.4651,3333.1,3332.5,35.0]
[1722321302126,7.37,3333.3,3332.8,2.40037]
[1722321303048,2.40002,3333.3,3332.6,2.40049]
[1722321303393,2.297,3333.5,3332.5,35.0]
[1722321303394,4.66289,3332.8,3332.5,35.0]
[1722321303527,0.466289,3332.7,3332.5,35.0]
[1722321303722,2.40052,3332.6,3332.5,35.0]
[1722321303963,0.466289,3332.7,3332.5,35.0]
[1722321304824,2.2625,3332.8,3332.5,35.0]
[1722321306467,2.2625,3332.8,3332.2,2.4008]
[1722321307077,4.6629,3332.8,3332.3,35.0]
[1722321307431,2.2625,3332.8,3332.3,35.0]
[1722321307963,4.66289,3332.8,3332.3,35.0]
[1722321311437,5.369203,3332.8,3332.3,35.0]
[1722321312276,2.40052,3332.7,3332.3,35.0]
[1722321313137,2.968813,3332.8,3332.3,35.0]
[1722321314174,5.369203,3332.8,3332.3,35.0]
[1722321314692,2.40047,3332.7,3332.3,35.0]
[1722321319700,2.2625,3332.8,3332.3,35.0]
[1722321320191,2.2625,3332.8,3332.3,37.40073]
[1722321320493,2.2625,3332.8,3332.3,35.0]
[1722321322764,4.66289,3332.8,3332.3,35.0]
[1722321323080,0.466289,3332.7,3332.3,35.0]
[1722321324180,2.866749,3332.7,3332.3,35.0]
[1722321325191,2.40062,3332.5,3332.3,35.0]
[1722321325395,2.40067,3332.4,3332.3,35.0]
[1722321325596,2.4009,3332.1,3331.4,2.40137]
[1722321326026,2.4009,3332.1,3331.5,35.0]
[1722321326584,2.40078,3332.3,3331.5,37.40131]
[1722321327799,2.40082,3332.2,3331.5,37.40131]
[1722321328827,2.40075,3332.3,3331.6,2.40123]
[1722321329017,6.012809,3332.4,3331.5,35.0]
[1722321329018,2.40081,3332.2,3331.5,35.0]
[1722321330321,2.40081,3332.2,3331.5,37.40131]
[1722321330615,3.7390209,3332.3,3331.5,37.40127]
[1722321331131,1.3382809,3332.3,3331.5,37.40131]
[1722321331420,4.79618,3332.4,3331.5,37.40131]
[1722321331566,0.55,3332.3,3331.5,37.40131]
[1722321331768,0.55,3332.3,3331.7,2.3797]
[1722321331973,7.37,3332.5,3332.0,2.40089]
[1722321332217,7.37,3332.5,3331.7,2.3797]
[1722321332218,7.37,3332.5,3332.1,2.40087]
[1722321332532,9.8115,3332.9,3332.2,35.0]
[1722321333606,2.40058,3332.6,3332.2,35.0]
[1722321333922,11.032672,3332.9,3332.2,35.0]
[1722321333923,2.40068,3332.4,3332.2,35.0]
[1722321334127,2.8949,3332.3,3331.6,2.4012]
[1722321334471,0.55,3332.3,3331.7,2.40117]
[1722321334677,0.55,3332.5,3331.8,35.0]
[1722321334909,3.718944,3332.5,3331.8,35.0]
[1722321335156,2.40067,3332.4,3331.8,35.0]
[1722321335489,2.95074,3332.3,3331.8,35.0]
[1722321335626,2.40074,3332.3,3331.8,35.0]
[1722321335835,2.40067,3332.4,3331.8,35.0]
[1722321336150,0.55,3332.3,3331.8,35.0]
[1722321336767,2.95074,3332.3,3331.8,35.0]
[1722321338742,0.55,3332.3,3331.8,35.0]
[1722321340145,2.95074,3332.3,3331.8,35.0]
[1722321341055,2.3911,3332.2,3331.8,35.0]
[1722321341254,2.935074,3332.1,3331.8,35.0]
[1722321342974,0.55,3332.0,3331.8,35.0]
[1722321344496,2.95101,3332.0,3331.2,2.40149]
[1722321344682,2.40103,3331.9,3331.2,2.40149]
[1722321344886,2.95096,3332.0,3331.0,2.40162]
[1722321345120,2.95096,3332.0,3331.5,35.0]
[1722321345121,2.40117,3331.7,3331.5,35.0]
[1722321345991,2.3624,3331.8,3331.5,35.0]
[1722321346172,0.55,3331.7,3331.5,35.0]
[1722321346415,0.29124,3331.6,3331.5,35.0]
[1722321347991,0.55,3331.7,3331.5,35.0]
[1722321349611,0.55,3331.7,3331.1,2.4016]
[1722321349932,2.40099,3332.0,3331.2,2.40148]
[1722321350081,4.7442,3332.1,3331.3,37.3582]
[1722321350284,0.55,3332.0,3331.3,37.3582]
[1722321350624,0.55,3332.0,3331.4,2.40133]
[1722321351125,12.8005714,3332.4,3331.6,2.40119]
[1722321351443,3.46469234,3332.3,3331.7,37.40115]
[1722321351649,3.46469234,3332.3,3331.7,35.0]
[1722321352296,2.40081,3332.2,3331.7,35.0]
[1722321357760,3.46469234,3332.3,3331.7,35.0]
[1722321357923,0.55,3332.2,3331.7,35.0]
[1722321358419,0.55,3332.2,3331.7,2.40115]
[1722321358964,0.55,3332.2,3331.8,35.0]
[1722321359270,1.544,3332.2,3331.8,35.0]
[1722321360238,3.02493237,3332.2,3331.8,35.0]
[1722321361422,0.994,3332.2,3331.8,35.0]
[1722321362169,7.37,3332.4,3332.1,2.2544]
[1722321362381,0.994,3332.7,3332.1,4.65528]
[1722321362685,2.76822519,3332.7,3332.1,4.65528]
[1722321363617,2.76822519,3332.7,3332.1,7.05616]
[1722321363822,0.994,3332.7,3332.2,2.40076]
[1722321364022,19.85,3332.9,3332.3,2.40073]
[1722321364229,0.55,3332.8,3332.5,2.40053]
[1722321365022,0.55,3332.8,3332.3,2.40073]
[1722321365282,0.55,3332.8,3332.4,35.0]
[1722321365460,0.55,3332.8,3332.4,37.40065]
[1722321365626,0.55,3333.0,3332.4,37.40065]
[1722321366870,0.55,3333.0,3332.4,39.75645]
[1722321367037,1.544,3333.0,3332.4,39.75645]
[1722321367242,0.55,3333.0,3332.4,39.75645]
[1722321368801,0.55,3333.0,3332.4,4.75645]
[1722321369001,1.11044133,3333.0,3332.4,4.75645]
[1722321369287,1.11044133,3333.0,3332.5,37.40059]
[1722321371502,1.11044133,3333.0,3332.4,2.40067]
[1722321372067,1.11044133,3333.0,3332.4,37.40067]
[1722321372272,2.4365,3332.9,3332.4,37.40067]
[1722321372477,0.55,3332.8,3332.4,37.40067]
[1722321372633,0.55,3332.8,3332.4,2.40067]
[1722321375063,0.55,3332.8,3332.2,2.40081]
[1722321376281,2.3879,3332.1,3331.4,4.78208]
[1722321376483,0.23879,3332.0,3331.2,2.40147]
[1722321376644,0.55,3332.0,3331.7,2.40116]
[1722321376847,7.37,3332.2,3331.7,2.40116]
[1722321377188,7.37,3332.2,3331.4,2.40136]
[1722321377982,7.37,3332.2,3331.5,37.40131]
[1722321378350,7.37,3332.2,3331.6,2.40124]
[1722321378550,7.37,3332.2,3331.7,2.40117]
[1722321379149,7.37,3332.2,3331.5,37.40131]
[1722321379653,7.37,3332.2,3331.6,2.40123]
[1722321380279,7.37,3332.2,3331.5,35.0]
[1722321380543,0.977076,3332.2,3331.5,35.0]
[1722321380693,2.95089,3332.1,3331.5,35.0]
[1722321381036,2.2546,3332.0,3331.5,35.0]
[1722321383099,2.40108,3331.9,3331.5,35.0]
[1722321383295,2.40108,3331.9,3331.1,2.4016]
[1722321383507,2.921648,3331.9,3331.1,2.4016]
[1722321383917,2.921648,3331.9,3331.2,35.0]
[1722321384121,2.9511,3331.8,3331.2,35.0]
[1722321384291,2.40125,3331.6,3331.2,35.0]
[1722321384738,4.70683,3331.5,3330.6,2.40191]
[1722321384954,2.3055,3331.5,3330.8,2.40177]
[1722321385243,4.70682,3331.5,3330.9,35.0]
[1722321386201,2.40139,3331.4,3330.9,35.0]
[1722321386404,2.3055,3331.5,3330.9,35.0]
[1722321386660,4.70687,3331.5,3330.9,35.0]
[1722321387203,2.4014,3331.4,3330.9,35.0]
[1722321388348,0.47069,3331.4,3330.9,35.0]
[1722321388774,0.47069,3331.4,3329.9,2.3903]
[1722321388979,2.40154,3331.2,3330.5,2.40204]
[1722321389158,2.95161,3331.1,3330.6,35.0]
[1722321389514,2.40161,3331.1,3330.6,35.0]
[1722321390340,2.95147,3331.3,3330.6,35.995]
[1722321390579,2.40155,3331.2,3330.6,35.995]
[1722321390971,2.95163,3331.1,3330.6,35.995]
[1722321391166,2.95163,3331.1,3330.6,35.0]
[1722321391368,2.40176,3330.9,3330.6,35.0]
[1722321391736,2.4421,3331.0,3330.6,35.0]
[1722321391979,2.40183,3330.8,3330.6,35.0]
[1722321392388,2.40172,3331.0,3330.6,35.0]
[1722321392600,2.40176,3330.9,3330.6,35.0]
[1722321393499,5.970628,3331.1,3330.6,35.0]
[1722321393800,2.40183,3330.8,3330.6,35.0]
[1722321396787,2.40183,3330.8,3330.2,0.995]
[1722321396987,2.40183,3330.8,3330.2,3.995]
[1722321397212,2.40183,3330.8,3330.3,35.0]
[1722321403004,2.9262,3330.7,3330.3,35.0]
[1722321403197,2.40204,3330.5,3330.3,35.0]
[1722321406220,2.40204,3330.5,3329.9,0.995]
[1722321406588,2.40204,3330.5,3330.0,35.0]
[1722321407629,2.40218,3330.3,3330.0,35.0]
[1722321407790,2.40204,3330.5,3330.0,35.0]
[1722321407791,2.40226,3330.2,3330.0,35.0]
[1722321408226,3.39726,3330.2,3330.0,35.0]
[1722321408426,2.40226,3330.2,3330.0,35.0]
[1722321408596,2.40221,3330.3,3330.0,35.0]
[1722321411523,2.40221,3330.3,3329.6,2.40268]
[1722321411718,2.40221,3330.3,3329.5,3.39776]
[1722321411719,2.40227,3330.2,3329.5,3.39776]
[1722321411931,2.40221,3330.3,3329.5,3.39776]
[1722321412131,2.40221,3330.3,3329.7,35.0]
[1722321413650,2.40233,3330.1,3329.7,35.0]
[1722321414880,2.9876,3330.2,3329.7,35.0]
[1722321415032,0.55,3330.2,3329.7,35.0]
[1722321415418,2.95226,3330.2,3329.7,35.0]
[1722321417449,2.95226,3330.2,3329.5,2.40276]
[1722321417817,2.95226,3330.2,3329.6,35.0]
[1722321419649,2.40247,3329.9,3329.6,35.0]
[1722321419848,2.40237,3330.1,3329.6,35.0]
[1722321420151,2.95241,3330.0,3329.6,35.0]
[1722321420727,2.3314,3329.9,3329.6,35.0]
[1722321420934,2.40255,3329.8,3329.6,35.0]
[1722321421721,2.40261,3329.7,3329.6,35.0]
[1722321421945,2.95261,3329.7,3329.6,35.0]
[1722321422255,5.35522,3329.7,3329.6,35.0]
[1722321425421,2.95261,3329.7,3329.6,35.0]
[1722321425642,2.40255,3329.8,3329.6,35.0]
[1722321426242,2.40234,3330.1,3329.7,2.2585]
[1722321426685,2.40241,3330.0,3329.7,2.2585]
[1722321427285,2.40229,3330.2,3329.7,2.2585]
[1722321427445,7.37,3330.3,3329.7,2.2585]
[1722321427787,2.40241,3330.0,3329.7,2.2585]
[1722321427987,2.40225,3330.2,3329.7,2.2585]
[1722321428481,2.40233,3330.1,3329.7,2.2585]
[1722321429282,2.40233,3330.1,3329.8,35.0]
[1722321431554,2.4024,3330.0,3329.8,35.0]
[1722321433303,2.40247,3329.9,3329.8,35.0]
[1722321434890,2.40247,3329.9,3329.4,2.4428]
[1722321435220,2.40237,3330.1,3329.4,2.4428]
[1722321435524,2.40247,3329.9,3329.5,35.0]
[1722321438425,2.40256,3329.8,3329.5,35.0]
[1722321439717,2.40244,3330.0,3329.5,35.0]
[1722321440074,9.7722,3330.3,3329.5,35.0]
[1722321440271,2.40234,3330.1,3329.5,35.0]
[1722321440531,9.7722,3330.3,3329.6,3.39769]
[1722321440532,7.37,3330.3,3329.6,3.39769]
[1722321440749,7.37,3330.3,3329.8,0.995]
[1722321441025,7.37,3330.3,3329.8,3.39754]
[1722321441242,7.37,3330.3,3329.9,35.0]
[1722321441388,7.37,3330.3,3330.1,2.2833]
[1722321441990,7.37,3330.3,3330.2,35.0]
[1722321442426,10.749385,3330.3,3330.2,35.0]
[1722321442637,17.123665,3330.3,3330.2,35.0]
[1722321442945,9.753665,3330.3,3330.2,35.0]
[1722321444590,2.40234,3330.1,3329.6,2.2859]
[1722321445044,2.40234,3330.1,3329.7,35.0]
[1722321445454,2.40247,3329.9,3329.7,35.0]
[1722321446613,0.995,3330.1,3329.7,35.0]
[1722321446813,2.40254,3329.8,3329.7,35.0]
[1722321447027,2.40274,3329.6,3328.8,2.40326]
[1722321447339,2.40276,3329.5,3328.8,2.40326]
[1722321447703,2.40276,3329.5,3328.9,0.995]
[1722321447897,2.40276,3329.5,3328.9,3.39819]
[1722321449592,2.4027,3329.6,3329.1,0.995]
[1722321449770,2.4027,3329.6,3328.9,3.39819]
[1722321454257,2.40276,3329.5,3328.7,5.77334]
[1722321454458,2.40285,3329.4,3328.8,5.40326]
[1722321454696,3.867626,3329.6,3328.8,5.40326]
[1722321455060,2.40276,3329.5,3328.8,5.40326]
[1722321457791,0.3867646,3329.4,3328.8,5.40326]
[1722321459569,0.3867646,3329.4,3328.9,0.995]
[1722321459773,2.40276,3329.5,3328.9,0.995]
[1722321460414,2.40276,3329.5,3328.9,3.39819]
[1722321462379,2.40276,3329.5,3328.9,0.995]
[1722321462919,2.40285,3329.4,3328.9,0.995]
[1722321463073,2.40285,3329.4,3328.8,3.0]
[1722321463508,3.0298896,3329.4,3328.5,2.40346]
[1722321463737,2.40305,3329.1,3328.5,2.40346]
[1722321463941,2.40305,3329.1,3328.5,5.40346]
[1722321464535,2.40313,3329.0,3328.5,3.0]
[1722321464744,2.40321,3328.9,3328.4,2.4828]
[1722321464920,0.240321,3328.8,3328.1,3.3234]
[1722321465125,0.995,3329.1,3328.1,3.3234]
[1722321465319,0.55,3329.0,3328.1,3.3234]
[1722321466013,0.55,3329.0,3328.1,5.72717]
[1722321466014,2.40326,3328.8,3328.1,5.72717]
[1722321469228,2.95313,3329.0,3328.2,2.40369]
[1722321469426,2.4032,3328.9,3328.2,2.40369]
[1722321469755,2.4032,3328.9,3328.3,0.995]
[1722321470932,1.185112,3329.0,3328.3,0.995]
[1722321471270,0.55,3329.0,3328.5,2.40343]
[1722321471452,0.55,3329.0,3328.6,2.40335]
[1722321471754,0.55,3329.0,3327.9,2.40388]
[1722321471755,7.37,3329.4,3328.9,3.39818]
[1722321473373,7.37,3329.4,3328.9,2.40318]
[1722321475417,7.37,3329.4,3329.0,2.40312]
[1722321475644,10.76755,3329.8,3329.0,2.40312]
[1722321475857,1.189755,3329.7,3329.2,2.40297]
[1722321476063,7.37,3329.8,3329.5,2.40271]
[1722321476262,7.37,3329.8,3329.5,3.39771]
[1722321476569,7.37,3329.8,3329.5,2.40271]
[1722321477428,7.37,3329.8,3329.3,5.67429]
[1722321477625,7.37,3329.8,3329.4,2.40283]
[1722321478137,8.107,3329.8,3329.3,3.2714]
[1722321478357,8.107,3329.8,3329.2,2.40297]
[1722321481487,0.737,3329.8,3329.2,2.40297]
[1722321481794,2.40252,3329.9,3329.2,2.40297]
[1722321483447,2.40252,3329.9,3329.0,3.39811]
[1722321483448,2.40262,3329.7,3329.0,2.40311]
[1722321483646,2.3968,3329.8,3328.9,5.80419]
[1722321483959,7.37,3330.1,3329.5,3.254]
[1722321484292,7.37,3330.4,3329.7,0.995]
[1722321484444,7.37,3330.4,3329.9,2.40242]
[1722321485376,7.37,3330.4,3330.0,35.0]
[1722321486379,8.06058431,3330.4,3330.0,35.0]
[1722321487381,0.69058431,3330.4,3330.0,35.0]
[1722321488076,3.09269431,3330.4,3330.0,35.0]
[1722321488285,2.40222,3330.3,3330.0,35.0]
[1722321488480,0.69058431,3330.4,3330.0,35.0]
[1722321488984,0.55490243,3330.3,3330.0,35.0]
[1722321489344,2.3692,3330.1,3329.5,2.40274]
[1722321489792,4.77154,3330.1,3329.5,2.40274]
[1722321489989,4.77154,3330.1,3329.6,35.0]
[1722321491802,2.3692,3330.1,3329.6,35.0]
[1722321492101,2.95708243,3330.3,3329.7,2.40261]
[1722321492305,0.55490243,3330.3,3329.7,2.40261]
[1722321492909,4.68762,3330.4,3329.7,2.40261]
[1722321493414,4.68762,3330.4,3329.5,2.40271]
[1722321493607,4.68762,3330.4,3329.6,35.0]
[1722321494107,2.40227,3330.2,3329.6,35.0]
[1722321494413,2.40227,3330.2,3329.6,37.40268]
[1722321497013,4.68762,3330.4,3329.7,4.70901]
[1722321497313,5.156382,3330.4,3329.7,4.70901]
[1722321498097,2.754262,3330.4,3329.6,35.0]
[1722321498296,2.40226,3330.2,3329.6,35.0]
[1722321498713,2.40233,3330.1,3329.6,35.0]
[1722321501232,2.40226,3330.2,3329.6,35.0]
[1722321502509,2.376,3330.3,3329.6,35.0]
[1722321502713,2.95233,3330.1,3329.6,35.0]
[1722321502913,2.40254,3329.9,3329.6,35.0]
[1722321503230,2.40254,3329.8,3329.6,35.0]
[1722321504824,2.40245,3330.0,3329.6,35.0]
[1722321505140,0.5594998,3330.0,3329.6,35.0]
[1722321505440,0.55,3330.1,3329.6,35.0]
[1722321505734,2.40234,3330.1,3329.6,35.0]
[1722321506305,2.4024,3330.0,3329.6,35.0]
[1722321509101,2.40249,3329.9,3329.6,35.0]
[1722321509704,2.40248,3329.9,3329.6,35.0]
[1722321510059,2.40261,3329.7,3329.6,35.0]
[1722321510348,6.744998,3329.8,3329.1,2.4676]
[1722321510838,2.40276,3329.5,3329.2,35.0]
[1722321514560,2.40262,3329.7,3329.2,35.0]
[1722321514753,2.40269,3329.6,3329.2,35.0]
[1722321517680,2.40276,3329.5,3329.2,35.0]
[1722321524257,0.63185084,3329.6,3329.2,37.40297]
[1722321524582,3.292398,3329.8,3329.2,37.40297]
[1722321525158,7.37,3330.0,3329.6,2.40264]
[1722321525366,7.37,3330.0,3329.7,2.4758]
[1722321525565,7.37,3330.0,3329.9,2.40247]
[1722321525765,7.37,3330.0,3329.9,39.80494]
[1722321529101,7.37,3330.7,3330.3,2.40212]
[1722321529306,9.56,3331.1,3330.5,2.3042]
[1722321529484,9.56,3331.1,3330.6,2.4019]
[1722321529814,9.56,3331.1,3330.7,37.40188]
[1722321531311,10.516,3331.1,3330.7,35.0]
[1722321531610,12.91766,3331.1,3330.7,35.0]
[1722321531998,2.40169,3331.0,3330.7,35.0]
[1722321532205,2.40169,3331.0,3330.2,4.69991]
[1722321532206,10.516,3331.1,3330.2,2.2977]
[1722321532404,2.40182,3330.8,3329.9,2.2977]
[1722321532604,2.40197,3330.6,3329.9,4.70015]
[1722321532780,2.40197,3330.6,3330.0,35.0]
[1722321533697,0.55,3330.7,3330.0,37.4024]
[1722321534533,2.95189,3330.7,3330.0,37.4024]
[1722321535335,3.247079,3330.7,3330.0,37.4024]
[1722321535637,2.40197,3330.6,3330.0,35.0]
[1722321538136,2.40212,3330.4,3330.0,35.0]
[1722321539379,2.402,3330.6,3330.0,35.0]
[1722321539577,0.5649089,3330.5,3330.0,35.0]
[1722321540129,2.9669589,3330.5,3330.0,35.0]
[1722321541396,2.40211,3330.4,3330.0,35.0]
[1722321542290,2.9669989,3330.5,3330.0,35.0]
[1722321542719,2.40211,3330.4,3330.0,35.0]
[1722321542921,2.69881189,3330.4,3330.0,35.0]
[1722321543134,0.55,3330.3,3330.0,35.0]
[1722321543854,0.29670189,3330.4,3330.0,35.0]
[1722321544068,2.40198,3330.6,3330.0,35.0]
[1722321548013,2.40184,3330.8,3330.1,2.4861]
[1722321548216,2.40169,3331.0,3330.1,2.4861]
[1722321548517,7.37,3331.1,3330.0,2.4326]
[1722321548716,7.37,3331.1,3330.6,2.40194]
[1722321549129,7.37,3331.1,3330.5,2.40197]
[1722321549356,7.37,3331.1,3330.6,0.995]
[1722321549826,7.37,3331.1,3330.7,2.40184]
[1722321552732,8.347147,3331.1,3330.8,35.0]
[1722321553026,0.977147,3331.1,3330.8,35.0]
[1722321553247,2.40175,3330.9,3330.1,4.66391]
[1722321553568,2.40182,3330.8,3330.2,3.0]
[1722321553738,2.40182,3330.8,3330.2,40.40225]
[1722321554754,2.40195,3330.7,3330.2,35.0]
[1722321554949,2.697002,3330.8,3330.2,35.0]
[1722321555363,2.40189,3330.7,3330.2,35.0]
[1722321556483,0.295182,3330.8,3330.2,35.0]
[1722321556637,2.40182,3330.8,3330.2,37.4022]
[1722321557678,2.95169,3331.0,3330.3,2.40217]
[1722321558402,2.95169,3331.0,3330.4,2.4021]
[1722321559555,2.40169,3331.0,3330.4,2.4021]
[1722321559952,2.40176,3330.9,3330.3,2.372]
[1722321560256,2.874496,3330.9,3330.5,35.0]
[1722321560579,0.472736,3330.9,3330.5,35.0]
[1722321560970,2.3256,3331.1,3330.5,37.40203]
[1722321561357,2.3256,3331.1,3330.5,35.0]
[1722321561358,4.72721,3331.1,3330.5,35.0]
[1722321561688,2.40168,3331.0,3330.5,35.0]
[1722321565421,2.40176,3330.9,3330.5,35.0]
[1722321565717,0.240176,3330.8,3330.5,35.0]
[1722321566023,2.40168,3331.0,3330.5,35.0]
[1722321570513,0.15284328,3330.9,3330.5,35.0]
[1722321570715,2.40168,3331.0,3330.5,35.0]
[1722321570956,2.40168,3331.0,3330.4,2.40209]
[1722321571111,0.15284264,3330.9,3330.4,2.40209]
[1722321571310,0.48801226,3330.9,3330.4,2.40209]
[1722321571570,0.48801226,3330.9,3330.4,37.40209]
[1722321572953,2.88976226,3330.9,3330.4,35.0]
[1722321573163,2.40182,3330.8,3330.4,35.0]
[1722321574676,2.40182,3330.8,3330.2,2.40224]
[1722321574883,3.03047123,3330.8,3330.2,2.40224]
[1722321575026,3.03047123,3330.8,3330.3,35.0]
[1722321575430,2.40209,3330.5,3330.3,35.0]
[1722321575632,2.40204,3330.5,3329.7,2.40256]
[1722321575944,2.40218,3330.3,3329.7,2.40256]
[1722321576256,2.40218,3330.3,3329.8,35.0]
[1722321576517,2.40239,3330.1,3329.8,35.0]
[1722321576719,0.995,3330.0,3329.2,4.80544]
[1722321576930,2.40255,3329.8,3329.2,2.4025]
[1722321577223,2.40255,3329.8,3329.3,35.0]
[1722321578027,0.566689,3329.9,3329.3,35.0]
[1722321578028,2.969199,3329.9,3329.3,35.0]
[1722321578193,0.55,3329.8,3329.3,35.0]
[1722321578398,2.95256,3329.8,3329.3,35.0]
[1722321579128,2.40262,3329.7,3329.3,35.0]
[1722321581166,2.40262,3329.7,3329.1,0.995]
[1722321581313,2.40269,3329.6,3329.0,3.0]
[1722321581828,2.40269,3329.6,3329.2,35.0]
[1722321582464,2.40276,3329.5,3329.2,35.0]
[1722321583264,2.40266,3329.7,3329.2,35.0]
[1722321584055,2.40274,3329.6,3329.2,35.0]
[1722321584909,2.95255,3329.8,3329.2,35.0]
[1722321585201,2.40262,3329.7,3329.2,35.0]
[1722321585369,2.4027,3329.6,3329.2,35.0]
[1722321587207,3.4039809,3329.8,3329.2,35.0]
[1722321587366,0.55,3329.8,3329.2,35.0]
[1722321587564,2.95254,3329.8,3329.2,35.0]
[1722321587989,2.40263,3329.7,3329.2,35.0]
[1722321589703,2.40262,3329.7,3329.3,2.4265]
[1722321590582,2.40297,3329.3,3328.5,2.40341]
[1722321590918,2.40366,3328.3,3327.9,35.0]
[1722321591219,2.40366,3328.3,3327.3,2.40434]
[1722321591220,2.40366,3328.3,3327.5,0.995]
[1722321591503,2.40366,3328.3,3327.6,35.0]
[1722321591756,1.334866,3328.2,3327.6,35.0]
[1722321591897,2.40384,3328.0,3327.6,35.0]
[1722321592703,2.40394,3327.9,3327.6,35.0]
[1722321592909,0.995,3327.8,3326.6,2.40484]
[1722321593123,3.39921,3327.5,3326.8,2.40465]
[1722321593432,2.40421,3327.5,3327.2,35.0]
[1722321594940,2.40435,3327.3,3327.2,35.0]
[1722321595145,2.40447,3327.2,3326.5,5.40492]
[1722321595292,2.40447,3327.2,3326.5,2.40492]
[1722321595636,2.40447,3327.2,3326.6,35.0]
[1722321596204,0.55,3327.3,3326.6,37.40483]
[1722321596409,0.55,3327.3,3326.6,35.0]
[1722321596627,2.95435,3327.3,3326.6,35.0]
[1722321596996,2.95435,3327.3,3326.6,37.40483]
[1722321597542,0.55,3327.3,3326.7,2.40478]
[1722321597703,0.55,3327.4,3326.7,2.40478]
[1722321598039,1.1098801,3327.4,3326.7,2.40478]
[1722321598392,3.5141601,3327.4,3326.6,35.0]
[1722321598592,2.40435,3327.3,3326.6,35.0]
[1722321599037,2.40435,3327.3,3326.6,37.40484]
[1722321599871,2.40442,3327.2,3326.6,37.40484]
[1722321600533,3.5141901,3327.4,3326.6,37.40484]
[1722321600952,0.85216211,3327.3,3326.6,35.0]
[1722321601836,2.40444,3327.2,3326.6,35.0]
[1722321602482,0.85216211,3327.3,3326.6,37.40484]
[1722321603286,0.85216211,3327.3,3326.8,2.40469]
[1722321603588,3.25652211,3327.3,3326.6,37.40484]
[1722321604037,3.25652211,3327.3,3326.7,2.40478]
[1722321605366,0.85216211,3327.3,3326.7,2.40478]
[1722321605680,0.85216211,3327.3,3326.9,2.40463]
[1722321605881,0.55,3327.4,3326.9,2.40463]
[1722321606183,0.55,3327.4,3326.7,2.40474]
[1722321606184,2.95429,3327.4,3326.7,2.40474]
[1722321607108,2.40436,3327.3,3326.6,35.0]
[1722321607314,0.295436,3327.2,3326.6,37.40483]
[1722321608706,2.699856,3327.2,3326.6,37.40483]
[1722321609000,0.295436,3327.2,3326.6,37.40483]
[1722321609316,0.55,3327.4,3326.8,2.40464]
[1722321609468,2.95421,3327.5,3326.8,2.40464]
[1722321609906,2.95421,3327.5,3326.9,2.40463]
[1722321610112,7.37,3327.8,3326.9,2.40463]
[1722321610265,10.74252,3327.8,3327.0,2.40452]
[1722321610682,10.74252,3327.8,3327.1,35.0]
[1722321610971,8.33853,3327.8,3327.1,35.0]
[1722321611170,2.40414,3327.6,3327.1,35.0]
[1722321611405,2.40436,3327.3,3327.1,35.0]
[1722321612009,2.644664,3327.5,3327.1,35.0]
[1722321612183,0.55,3327.4,3327.1,35.0]
[1722321612383,2.95428,3327.4,3327.1,35.0]
[1722321612778,10.74252,3327.8,3327.1,35.0]
[1722321613197,0.55,3327.7,3327.1,35.0]
[1722321613421,0.55,3327.7,3327.1,37.40444]
[1722321613621,0.55,3327.7,3327.2,2.40436]
[1722321613921,0.55,3327.7,3327.3,2.40434]
[1722321614699,0.55,3327.7,3327.1,37.40444]
[1722321614974,0.942252,3327.7,3327.1,37.40444]
[1722321616198,0.942252,3327.7,3327.2,2.40441]
[1722321616389,0.55,3327.7,3327.3,2.40434]
[1722321616591,0.55,3327.7,3327.4,2.40427]
[1722321616919,0.55,3327.7,3327.2,2.40437]
[1722321617699,0.55,3327.7,3327.3,2.40433]
[1722321618134,0.55,3327.7,3327.1,37.40447]
[1722321618456,0.151853,3327.6,3327.1,37.40447]
[1722321618604,0.55,3327.9,3327.1,37.40447]
[1722321619002,0.55,3327.9,3327.1,35.0]
[1722321619208,0.55,3327.9,3327.3,2.40434]
[1722321620549,0.55,3327.9,3327.5,2.40415]
[1722321620749,0.55,3328.0,3327.3,2.4043]
[1722321621046,0.55,3328.0,3327.5,2.40415]
[1722321621246,1.14128573,3328.0,3327.5,2.40415]
[1722321623954,2.40393,3327.9,3327.3,2.4043]
[1722321624168,2.40399,3327.8,3327.1,2.40447]
[1722321624327,2.40399,3327.8,3327.2,37.40441]
[1722321624531,5.22631757,3327.8,3327.2,37.40441]
[1722321624715,5.22631757,3327.8,3327.2,35.0]
[1722321625560,5.22631757,3327.8,3327.2,37.40442]
[1722321628762,5.22631757,3327.8,3327.2,2.40442]
[1722321629390,0.35452757,3327.8,3327.4,2.40427]